fUSD/lending_fUSD_20250202
["ID","MTS","AMOUNT","RATE_DAILY","PERIOD"]
[351287973,1738505602189,-1008.38188877,0.00014109,2]
[351287974,1738505602198,-6130.97385577,0.00014109,2]
[351287975,1738505602208,-4888.82800226,0.00014109,2]
[351287976,1738505602217,-4469.12091118,0.00014109,2]
[351287977,1738505602227,-874.67176974,0.00014109,2]
[351287978,1738505602236,-7017.94041343,0.00014109,2]
[351287979,1738505602245,-7067.94174673,0.00014109,2]
[351287980,1738505602255,-504.53,0.00014109,2]
[351287981,1738505602264,-1694.69400337,0.00014109,2]
[351287982,1738505602274,-809.3189805,0.00014109,2]
[351287983,1738505602283,-1463.77721727,0.00014109,2]
[351287984,1738505602294,-957.18094195,0.00014109,2]
[351287985,1738505602304,-5901.46407232,0.00014109,2]
[351287986,1738505602313,-25450.75539053,0.00014109,2]
[351287987,1738505602322,-3194.82639517,0.00014109,2]
[351287988,1738505602332,-972.2543356,0.00014109,2]
[351287989,1738505602343,-978.48072759,0.00014109,2]
[351287990,1738505602353,-1927.40600827,0.00014109,2]
[351287991,1738505602362,-1823.10502573,0.00014109,2]
[351287992,1738505602371,-1313.53418323,0.00014109,2]
[351287993,1738505602381,-2811.77797355,0.00014109,2]
[351287994,1738505602390,-2290.68718775,0.00014109,2]
[351287995,1738505602400,-4241.69456621,0.00014109,2]
[351287996,1738505602409,-2753.38632446,0.00014109,2]
[351287997,1738505602419,-778.38458877,0.00014109,2]
[351287998,1738505602428,-11875.71231817,0.00014109,2]
[351287999,1738505602437,-3179.89441625,0.00014109,2]
[351288000,1738505602447,-590.80352971,0.00014109,2]
[351288001,1738505602456,-2423.18729893,0.00014109,2]
[351288002,1738505602467,-1805.05747028,0.00014109,2]
[351288003,1738505602476,-8941.69876468,0.00014109,2]
[351288004,1738505602486,-1720.70133352,0.00014109,2]
[351288005,1738505602496,-925.09727263,0.00014109,2]
[351288006,1738505602505,-754.05224722,0.00014109,2]
[351288007,1738505602515,-2796.09232523,0.00014109,2]
[351288008,1738505602525,-1515.77040555,0.00014109,2]
[351288009,1738505602535,-890.89444548,0.00014109,2]
[351288010,1738505602546,-8022.26315678,0.00014109,2]
[351288011,1738505602556,-1172.11328619,0.00014109,2]
[351288012,1738505602567,-741.3587635,0.00014109,2]
[351288013,1738505602579,-1314.29988488,0.00014109,2]
[351288014,1738505602589,-2827.33443384,0.00014109,2]
[351288015,1738505602599,-596.19556468,0.00014109,2]
[351288016,1738505602609,-2588.02254883,0.00014109,2]
[351288017,1738505602619,-770.65,0.00014109,2]
[351288018,1738505602629,-1000.0,0.00014247,2]
[351288019,1738505602639,-1000.0,0.00014247,2]
[351288020,1738505602650,-500.19069144,0.00014247,2]
[351288021,1738505602660,-1000.0,0.00014247,2]
[351288022,1738505602670,-1000.0,0.00014247,2]
[351288023,1738505602680,-500.37435369,0.00014247,2]
[351288024,1738505602690,-1000.0,0.00014247,2]
[351288025,1738505602700,-1000.0,0.00014247,2]
[351288026,1738505602710,-639.94,0.00014291,2]
[351288027,1738505602720,-876.6,0.00014354,2]
[351288028,1738505602730,-596.76,0.00014354,2]
[351288029,1738505602740,-150.0,0.00014354,2]
[351288030,1738505602750,-299.29,0.00014354,2]
[351288031,1738505602759,-29999.99,0.00014504,2]
[351288032,1738505602769,-20462.17,0.00014504,2]
[351288033,1738505602779,-506.07874597,0.0001452,2]
[351288034,1738505602791,-1152.0,0.00014579,2]
[351288035,1738505602801,-500.0,0.000146,2]
[351288036,1738505602811,-500.0,0.000146,2]
[351288037,1738505602820,-500.0,0.000146,2]
[351288038,1738505602831,-500.0,0.000146,2]
[351288039,1738505602841,-500.0,0.000146,2]
[351288040,1738505602850,-500.0,0.000146,2]
[351288041,1738505602861,-500.0,0.000146,2]
[351288042,1738505602870,-500.0,0.000146,2]
[351288043,1738505602880,-500.0,0.000146,2]
[351288044,1738505602890,-500.0,0.000146,2]
[351288045,1738505602899,-500.0,0.000146,2]
[351288046,1738505602908,-500.0,0.000146,2]
[351288047,1738505602918,-500.0,0.000146,2]
[351288048,1738505602927,-500.0,0.000146,2]
[351288049,1738505602937,-500.0,0.000146,2]
[351288050,1738505602946,-500.0,0.000146,2]
[351288051,1738505602956,-500.0,0.000146,2]
[351288052,1738505602966,-500.0,0.000146,2]
[351288053,1738505602976,-500.0,0.000146,2]
[351288054,1738505602985,-500.0,0.000146,2]
[351288055,1738505602994,-500.0,0.000146,2]
[351288056,1738505603004,-500.0,0.000146,2]
[351288057,1738505603014,-500.0,0.000146,2]
[351288058,1738505603025,-500.0,0.000146,2]
[351288059,1738505603035,-500.0,0.000146,2]
[351288060,1738505603045,-500.0,0.000146,2]
[351288061,1738505603055,-500.0,0.000146,2]
[351288062,1738505603065,-500.0,0.000146,2]
[351288063,1738505603075,-500.0,0.000146,2]
[351288064,1738505603085,-500.0,0.000146,2]
[351288065,1738505603095,-500.0,0.000146,2]
[351288066,1738505603105,-500.0,0.000146,2]
[351288067,1738505603115,-500.0,0.000146,2]
[351288068,1738505603127,-500.0,0.000146,2]
[351288069,1738505603138,-500.0,0.000146,2]
[351288070,1738505603148,-500.0,0.000146,2]
[351288071,1738505603158,-500.0,0.000146,2]
[351288072,1738505603168,-500.0,0.000146,2]
[351288073,1738505603179,-500.0,0.000146,2]
[351288074,1738505603188,-500.0,0.000146,2]
[351288075,1738505603198,-500.0,0.000146,2]
[351288076,1738505603208,-500.0,0.000146,2]
[351288077,1738505603219,-500.0,0.000146,2]
[351288078,1738505603229,-500.0,0.000146,2]
[351288079,1738505603240,-500.0,0.000146,2]
[351288080,1738505603250,-500.0,0.000146,2]
[351288081,1738505603260,-500.0,0.000146,2]
[351288082,1738505603270,-500.0,0.000146,2]
[351288083,1738505603281,-500.0,0.000146,2]
[351288084,1738505603291,-500.0,0.000146,2]
[351288085,1738505603301,-500.0,0.000146,2]
[351288086,1738505603310,-500.0,0.000146,2]
[351288087,1738505603321,-500.0,0.000146,2]
[351288088,1738505603331,-500.0,0.000146,2]
[351288089,1738505603340,-500.0,0.000146,2]
[351288090,1738505603350,-500.0,0.000146,2]
[351288091,1738505603360,-500.0,0.000146,2]
[351288092,1738505603370,-500.0,0.000146,2]
[351288093,1738505603380,-500.0,0.000146,2]
[351288094,1738505603390,-500.0,0.000146,2]
[351288095,1738505603400,-500.0,0.000146,2]
[351288096,1738505603411,-500.0,0.000146,2]
[351288097,1738505603421,-500.0,0.000146,2]
[351288098,1738505603431,-500.0,0.000146,2]
[351288099,1738505603440,-500.0,0.000146,2]
[351288100,1738505603450,-500.0,0.000146,2]
[351288101,1738505603460,-500.0,0.000146,2]
[351288102,1738505603470,-500.0,0.000146,2]
[351288103,1738505603480,-500.0,0.000146,2]
[351288104,1738505603489,-500.0,0.000146,2]
[351288105,1738505603499,-500.0,0.000146,2]
[351288106,1738505603509,-500.0,0.000146,2]
[351288107,1738505603518,-500.0,0.000146,2]
[351288108,1738505603528,-500.0,0.000146,2]
[351288109,1738505603538,-500.0,0.000146,2]
[351288110,1738505603551,-500.0,0.000146,2]
[351288111,1738505603564,-500.0,0.000146,2]
[351288112,1738505603574,-500.0,0.000146,2]
[351288113,1738505603584,-500.0,0.000146,2]
[351288114,1738505603594,-500.0,0.000146,2]
[351288115,1738505603604,-500.0,0.000146,2]
[351288116,1738505603615,-500.0,0.000146,2]
[351288117,1738505603626,-500.0,0.000146,2]
[351288118,1738505603635,-500.0,0.000146,2]
[351288119,1738505603646,-500.0,0.000146,2]
[351288120,1738505603656,-500.0,0.000146,2]
[351288121,1738505603667,-500.0,0.000146,2]
[351288122,1738505603677,-500.0,0.000146,2]
[351288123,1738505603687,-500.0,0.000146,2]
[351288124,1738505603697,-500.0,0.000146,2]
[351288125,1738505603706,-500.0,0.000146,2]
[351288126,1738505603715,-500.0,0.000146,2]
[351288127,1738505603726,-500.0,0.000146,2]
[351288128,1738505603736,-500.0,0.000146,2]
[351288129,1738505603746,-500.0,0.000146,2]
[351288130,1738505603756,-500.0,0.000146,2]
[351288131,1738505603766,-500.0,0.000146,2]
[351288132,1738505603776,-500.0,0.000146,2]
[351288133,1738505603786,-500.0,0.000146,2]
[351288134,1738505603797,-500.0,0.000146,2]
[351288135,1738505603807,-500.0,0.000146,2]
[351288136,1738505603817,-500.0,0.000146,2]
[351288137,1738505603828,-500.0,0.000146,2]
[351288138,1738505603838,-500.0,0.000146,2]
[351288139,1738505603848,-500.0,0.000146,2]
[351288140,1738505603858,-500.0,0.000146,2]
[351288141,1738505603868,-500.0,0.000146,2]
[351288142,1738505603878,-985.0,0.000146,2]
[351288143,1738505603888,-500.0,0.000146,2]
[351288144,1738505603898,-500.0,0.000146,2]
[351288145,1738505603908,-500.0,0.000146,2]
[351288146,1738505603919,-500.0,0.000146,2]
[351288147,1738505603929,-500.0,0.000146,2]
[351288148,1738505603939,-500.0,0.000146,2]
[351288149,1738505603949,-500.0,0.000146,2]
[351288150,1738505603960,-500.0,0.000146,2]
[351288151,1738505603970,-500.0,0.000146,2]
[351288152,1738505603980,-500.0,0.000146,2]
[351288153,1738505603990,-500.0,0.000146,2]
[351288154,1738505604001,-500.0,0.000146,2]
[351288155,1738505604011,-500.0,0.000146,2]
[351288156,1738505604021,-500.0,0.000146,2]
[351288157,1738505604031,-500.0,0.000146,2]
[351288158,1738505604043,-500.0,0.000146,2]
[351288159,1738505604054,-500.0,0.000146,2]
[351288160,1738505604064,-500.0,0.000146,2]
[351288161,1738505604074,-500.0,0.000146,2]
[351288162,1738505604085,-500.0,0.000146,2]
[351288163,1738505604096,-500.0,0.000146,2]
[351288164,1738505604107,-500.0,0.000146,2]
[351288165,1738505604117,-500.0,0.000146,2]
[351288166,1738505604128,-500.0,0.000146,2]
[351288167,1738505604138,-500.0,0.000146,2]
[351288168,1738505604148,-500.0,0.000146,2]
[351288169,1738505604158,-943.0,0.000146,2]
[351288170,1738505604168,-150.0,0.00014717,2]
[351288171,1738505604179,-208.33333,0.0001472,2]
[351288172,1738505604190,-1036.71,0.00014767,7]
[351288173,1738505604200,-1036.71,0.00014767,7]
[351288174,1738505604210,-1036.71,0.00014767,7]
[351288175,1738505604219,-1036.71,0.00014767,7]
[351288176,1738505604229,-1000.0,0.00014798,2]
[351288177,1738505604239,-203168.73970539,0.000148,2]
[351288178,1738505604248,-215.47200746,0.000149,2]
[351288179,1738505604258,-215.47200745,0.000149,2]
[351288180,1738505604267,-590.34278458,0.0001492,2]
[351288181,1738505604278,-1020.01,0.00014979,2]
[351288182,1738505604287,-676530.0,0.00015,2]
[351288183,1738505604300,-1711.0,0.00015,2]
[351288184,1738505604311,-600.0,0.00015,2]
[351288185,1738505604321,-159.96,0.00015011,2]
[351288186,1738505604331,-1036.71,0.00015041,7]
[351288187,1738505604341,-1036.71,0.00015041,7]
[351288188,1738505604351,-1000.0,0.00015044,2]
[351288189,1738505604362,-150.0,0.00015065,2]
[351288190,1738505604372,-1194.27,0.00015068,2]
[351288191,1738505604383,-222.220939,0.00015118,2]
[351288192,1738505604393,-171.614116,0.00015118,2]
[351288193,1738505604403,-153.408907,0.00015118,2]
[351288194,1738505604413,-222.220937,0.00015118,2]
[351288195,1738505604423,-1500.0,0.00015248,2]
[351288196,1738505604434,-1500.0,0.00015248,2]
[351288197,1738505604445,-1114.74415476,0.00015248,2]
[351288198,1738505604456,-1500.0,0.00015248,2]
[351288199,1738505604467,-1502.10895392,0.00015248,2]
[351288200,1738505604476,-1500.0,0.00015248,2]
[351288201,1738505604486,-150.0,0.00015268,2]
[351288202,1738505604497,-1036.71,0.00015315,7]
[351288203,1738505604508,-1036.71,0.00015315,7]
[351288204,1738505604519,-150.0,0.00015368,2]
[351288205,1738505604530,-2500.0,0.00015374,2]
[351288206,1738505604540,-2500.0,0.00015374,2]
[351288207,1738505604555,-150.0,0.00015378,2]
[351288208,1738505604567,-129185.03627967,0.000154,7]
[351288209,1738505604580,-181.61,0.00015415,2]
[351288210,1738505604591,-150.0,0.00015489,2]
[351288211,1738505604602,-454.49862287,0.00015499,5]
[351288212,1738505604615,-611.62559218,0.00015499,2]
[351288213,1738505604627,-2821931.97619767,0.000155,2]
[351288214,1738505604638,-30000.0,0.000155,3]
[351288215,1738505604649,-1036.71,0.00015589,7]
[351288216,1738505604659,-1036.71,0.00015589,7]
[351288217,1738505604671,-639.94,0.0001559,2]
[351288218,1738505604682,-150.0,0.00015618,2]
[351288219,1738505604694,-150.0,0.00015641,2]
[351288220,1738505604704,-166.16,0.00015678,2]
[351288221,1738505604715,-1000.0,0.00015684,2]
[351288222,1738505604725,-150.0,0.00015748,2]
[351288223,1738505604736,-5800.0,0.000158,2]
[351288224,1738505604746,-80305.10728771,0.000158,2]
[351288225,1738505606059,-500.0,0.00010958,2]
[351288226,1738505606070,-169.23,0.00010958,2]
[351288227,1738505606083,-330.77,0.00010958,2]
[351288228,1738505606093,-209.7956742,0.00010958,2]
[351288229,1738505606105,-290.2043258,0.00010958,2]
[351288230,1738505606115,-2082.35,0.00011095,2]
[351288231,1738505606124,-500.0,0.00011095,2]
[351288232,1738505606134,-150.38479784,0.00011095,2]
[351288233,1738505606143,-500.0,0.00011095,2]
[351288234,1738505606153,-706.00612911,0.00011232,2]
[351288235,1738505606168,-926.57999998,0.00011232,2]
[351288236,1738505606216,-449.76387091,0.00011232,2]
[351288237,1738505606227,-500.0,0.00011232,2]
[351288238,1738505606237,-475.81717869,0.00011269,2]
[351288239,1738505606247,-2082.35,0.00011369,2]
[351288240,1738505606256,-507.79801311,0.00011369,2]
[351288241,1738505606267,-500.0,0.00011369,2]
[351288242,1738505606277,-2082.35,0.00011506,2]
[351288243,1738505606287,-2082.35,0.00011643,2]
[351288244,1738505606300,-500.0,0.0001178,2]
[351288245,1738505606311,-2082.35,0.0001178,2]
[351288246,1738505606321,-500.0,0.00011917,2]
[351288247,1738505606331,-2082.35,0.00011917,2]
[351288248,1738505606341,-500.0,0.00012054,2]
[351288249,1738505606351,-2082.35,0.00012054,2]
[351288250,1738505606361,-500.0,0.00012191,2]
[351288251,1738505606371,-500.0,0.00012328,2]
[351288252,1738505606381,-151.0,0.00012329,2]
[351288253,1738505606391,-151.0,0.00012329,2]
[351288254,1738505606401,-500.0,0.00012465,2]
[351288255,1738505606411,-500.0,0.00012602,2]
[351288256,1738505606421,-3707.36,0.00013013,2]
[351288257,1738505606432,-3707.36,0.0001315,2]
[351288258,1738505606442,-3707.36,0.00013287,2]
[351288259,1738505606452,-651.22,0.00013835,2]
[351288260,1738505606462,-651.22,0.00013972,2]
[351288261,1738505606471,-651.25841917,0.00014109,2]
[351288262,1738505606481,-177654.74251821,0.000158,2]
[351288263,1738505606494,-555.55064523,0.000158,2]
[351288264,1738505606505,-49390.5,0.000158,2]
[351288265,1738505606517,-30697.69474099,0.000158,2]
[351288266,1738505606529,-10960.139135,0.000158,2]
[351288267,1738505606541,-1057.0559979,0.000158,2]
[351288268,1738505606592,-500.0,0.00010958,2]
[351288269,1738505606603,-126.48,0.00012329,2]
[351288270,1738505606615,-30.793844,0.00012329,2]
[351288271,1738505606626,-441.38341132,0.00012739,2]
[351288272,1738505606638,-58.61658868,0.00012739,2]
[351288273,1738505606649,-931.22287732,0.00013424,2]
[351288274,1738505606669,-500.0,0.00011506,2]
[351288275,1738505606679,-2776.13712268,0.00013424,2]
[351288276,1738505606705,-3317.13907862,0.000158,2]
[351288277,1738505606728,-391.02789701,0.000158,2]
[351288278,1738505606753,-3676.23039999,0.000158,2]
[351288279,1738505606826,-1675.28514632,0.00011099,2]
[351288280,1738505606843,-1755.51715655,0.00012191,2]
[351288281,1738505607674,-500.0,0.00010958,2]
[351288282,1738505607683,-198.384581,0.00010958,2]
[351288283,1738505607696,-301.615419,0.00010958,2]
[351288284,1738505607706,-429.89017675,0.00010958,2]
[351288285,1738505607717,-70.10982325,0.00010958,2]
[351288286,1738505607727,-500.0,0.00010958,2]
[351288287,1738505607737,-500.0,0.00011095,2]
[351288288,1738505607747,-500.0,0.00011095,2]
[351288289,1738505607756,-66.17822508,0.00011095,2]
[351288290,1738505607775,-433.82177492,0.00011095,2]
[351288291,1738505607785,-500.0,0.00011232,2]
[351288292,1738505607795,-500.0,0.00011232,2]
[351288293,1738505607806,-500.0,0.00011232,2]
[351288294,1738505607816,-500.0,0.00011369,2]
[351288295,1738505607826,-387.7,0.00011369,2]
[351288296,1738505607836,-500.0,0.00011369,2]
[351288297,1738505607846,-500.0,0.00011506,2]
[351288298,1738505607856,-500.0,0.00011506,2]
[351288299,1738505607866,-500.0,0.00011643,2]
[351288300,1738505607877,-368.69,0.00011643,2]
[351288301,1738505607887,-500.0,0.0001178,2]
[351288302,1738505607897,-500.0,0.00011917,2]
[351288303,1738505607907,-500.0,0.00012054,2]
[351288304,1738505607917,-326.83284345,0.00012191,2]
[351288305,1738505607927,-500.0,0.00012191,2]
[351288306,1738505607937,-2082.35,0.00012328,2]
[351288307,1738505607947,-500.0,0.00012328,2]
[351288308,1738505607956,-2082.35,0.00012465,2]
[351288309,1738505607967,-500.0,0.00012465,2]
[351288310,1738505607977,-2082.35,0.00012602,2]
[351288311,1738505607987,-500.0,0.00012602,2]
[351288312,1738505607997,-2082.35,0.00012739,2]
[351288313,1738505608007,-500.0,0.00012876,2]
[351288314,1738505608016,-2082.35,0.00012876,2]
[351288315,1738505608026,-57.06361564,0.00013013,2]
[351288316,1738505608038,-228.61763992,0.00013013,2]
[351288317,1738505608049,-1384.23598733,0.00013013,2]
[351288318,1738505608062,-698.11401267,0.00013013,2]
[351288319,1738505608072,-2082.35,0.0001315,2]
[351288320,1738505608082,-1902.60748001,0.00013287,2]
[351288321,1738505608104,-563.21,0.00011643,2]
[351288322,1738505608114,-179.74251999,0.00013287,2]
[351288323,1738505608124,-2082.35,0.00013424,2]
[351288324,1738505608134,-2113.89748001,0.00013561,2]
[351288325,1738505608145,-1593.46251999,0.00013561,2]
[351288326,1738505608156,-2082.35,0.00013561,2]
[351288327,1738505608166,-3707.36,0.00013698,2]
[351288328,1738505608175,-1033.47988001,0.00013835,2]
[351288329,1738505608187,-916.86,0.00013835,2]
[351288330,1738505608199,-461.2000035,0.00013835,2]
[351288331,1738505609684,-500.0,0.00010958,2]
[351288332,1738505609694,-500.0,0.00010958,2]
[351288333,1738505609703,-500.0,0.00011095,2]
[351288334,1738505609712,-1675.28514632,0.00011099,2]
[351288335,1738505609721,-272.75,0.00011232,2]
[351288336,1738505609731,-475.81717867,0.00011749,2]
[351288337,1738505609740,-500.0,0.00012739,2]
[351288338,1738505609750,-500.0,0.00012876,2]
[351288339,1738505609759,-500.0,0.00013013,2]
[351288340,1738505609769,-500.0,0.0001315,2]
[351288341,1738505609778,-331.92552731,0.00013287,2]
[351288342,1738505609787,-2082.35,0.00013698,2]
[351288343,1738505609797,-1295.82011649,0.00013835,2]
[351288344,1738505609807,-2082.35,0.00013835,2]
[351288345,1738505609816,-3707.36,0.00013972,2]
[351288346,1738505609826,-2082.35,0.00013972,2]
[351288347,1738505609835,-3707.49532579,0.00014109,2]
[351288348,1738505609844,-2082.35933247,0.00014109,2]
[351288349,1738505609854,-322630.27428008,0.000158,2]
[351288350,1738505609865,-32364.13392428,0.000158,2]
[351288351,1738505609876,-2033.57867502,0.000158,2]
[351288352,1738505609887,-1473.32726893,0.000158,2]
[351288353,1738505609898,-334.69354215,0.000158,2]
[351288354,1738505609909,-8155.0,0.000158,2]
[351288355,1738505609942,-3784.14395897,0.000158,2]
[351288356,1738505609958,-4717.6959659,0.000158,2]
[351288357,1738505609983,-500.0,0.00010958,2]
[351288358,1738505609992,-276.00644999,0.000158,2]
[351288359,1738505610003,-706.32500244,0.000158,2]
[351288360,1738505743067,314.16959024,0.00023,120]
[351288363,1738505855929,7904.59176773,0.00023,120]
[351288364,1738505856638,170.05,0.00016658,30]
[351288365,1738505970672,1670.68433875,0.00023,120]
[351288366,1738505978938,901.5,8.439e-05,2]
[351288380,1738506551147,-1388.86148602,0.0001,2]
[351288381,1738506561920,-1655924.490277,0.0001,2]
[351288382,1738506561943,-248.97911812,0.000101,2]
[351288383,1738506561966,-178.51,0.00010137,2]
[351288384,1738506561992,-376.84,0.00010162,2]
[351288385,1738506562014,-360.27,0.00010223,2]
[351288386,1738506562037,-250.0,0.00010289,2]
[351288387,1738506562059,-170.04,0.00010366,2]
[351288388,1738506562082,-177.71,0.00010372,2]
[351288389,1738506562103,-948.13,0.00010426,2]
[351288390,1738506562126,-901.5,0.00010703,2]
[351288391,1738506562147,-214.04332693,0.000108,2]
[351288392,1738506562170,-800.0,0.000108,3]
[351288393,1738506562192,-7543.57734856,0.00010804,2]
[351288394,1738506562214,-177.07,0.00010814,2]
[351288395,1738506562236,-500.0,0.00010858,2]
[351288396,1738506562257,-1000.0,0.00010858,2]
[351288397,1738506562279,-5000.0,0.00010858,2]
[351288398,1738506562301,-475.9275,0.00010858,2]
[351288399,1738506562323,-2500.0,0.00010858,2]
[351288400,1738506562345,-1600.0,0.000109,3]
[351288401,1738506562368,-514.9328134,0.00010958,2]
[351288402,1738506562389,-500.0,0.00010958,2]
[351288403,1738506562411,-500.0,0.00010958,2]
[351288404,1738506562432,-500.0,0.00010958,2]
[351288405,1738506562454,-500.0,0.00010958,2]
[351288406,1738506562476,-501.63629071,0.00010958,2]
[351288407,1738506562498,-500.0,0.00010958,2]
[351288408,1738506562520,-500.0,0.00010958,2]
[351288409,1738506562542,-500.0,0.00010958,2]
[351288410,1738506562564,-442.25225934,0.00010958,2]
[351288411,1738506562586,-500.0,0.00010958,2]
[351288412,1738506562608,-500.0,0.00010958,2]
[351288413,1738506562632,-608.53,0.00010958,2]
[351288414,1738506562655,-500.0,0.00010958,2]
[351288415,1738506562678,-500.0,0.00010958,2]
[351288416,1738506562700,-585.08,0.00010958,2]
[351288417,1738506562722,-500.0,0.00010958,2]
[351288418,1738506562744,-500.0,0.00010958,2]
[351288419,1738506562766,-500.0,0.00010958,2]
[351288420,1738506562788,-573.01,0.00010958,2]
[351288421,1738506562810,-500.0,0.00010958,2]
[351288422,1738506562833,-500.0,0.00010958,2]
[351288423,1738506562855,-500.0,0.00010958,2]
[351288424,1738506562880,-500.0,0.00010958,2]
[351288425,1738506562906,-500.0,0.00010958,2]
[351288426,1738506562928,-500.0,0.00010958,2]
[351288427,1738506562950,-500.0,0.00010958,2]
[351288428,1738506562972,-500.0,0.00010958,2]
[351288429,1738506562994,-500.0,0.00010958,2]
[351288430,1738506563017,-500.0,0.00010958,2]
[351288431,1738506563039,-537.96,0.00010958,2]
[351288432,1738506563061,-500.0,0.00010958,2]
[351288433,1738506563083,-500.0,0.00010958,2]
[351288434,1738506563105,-494.23150096,0.00010958,2]
[351288435,1738506563127,-500.0,0.00010958,2]
[351288436,1738506563149,-500.0,0.00010958,2]
[351288437,1738506563171,-500.0,0.00010958,2]
[351288438,1738506563193,-500.0,0.00010958,2]
[351288439,1738506563215,-500.0,0.00010958,2]
[351288440,1738506563238,-500.0,0.00010958,2]
[351288441,1738506563260,-1447.89,0.00010958,2]
[351288442,1738506563281,-500.0,0.00010958,2]
[351288443,1738506563304,-1735.29,0.00010958,2]
[351288444,1738506563327,-2420.33,0.00010958,2]
[351288445,1738506563351,-500.0,0.00010958,2]
[351288446,1738506563374,-532.18,0.00010958,2]
[351288447,1738506563396,-500.0,0.00010958,2]
[351288448,1738506563420,-500.0,0.00010958,2]
[351288449,1738506563441,-500.0,0.00010958,2]
[351288450,1738506563463,-500.0,0.00010958,2]
[351288451,1738506563484,-500.0,0.00010958,2]
[351288452,1738506563508,-500.0,0.00010958,2]
[351288453,1738506563529,-500.0,0.00010958,2]
[351288454,1738506563553,-500.0,0.00010958,2]
[351288455,1738506563574,-500.0,0.00010958,2]
[351288456,1738506563597,-500.0,0.00010958,2]
[351288457,1738506563620,-500.0,0.00010958,2]
[351288458,1738506563642,-500.0,0.00010958,2]
[351288459,1738506563664,-500.0,0.00010958,2]
[351288460,1738506563686,-500.0,0.00010958,2]
[351288461,1738506563709,-500.0,0.00010958,2]
[351288462,1738506563732,-500.0,0.00010958,2]
[351288463,1738506563754,-500.0,0.00010958,2]
[351288464,1738506563777,-500.0,0.00010958,2]
[351288465,1738506563799,-500.0,0.00010958,2]
[351288466,1738506563822,-500.0,0.00010958,2]
[351288467,1738506563844,-527.47757044,0.00010958,2]
[351288468,1738506563867,-500.0,0.00010958,2]
[351288469,1738506563890,-500.0,0.00010958,2]
[351288470,1738506563915,-500.0,0.00010958,2]
[351288471,1738506563937,-500.0,0.00010958,2]
[351288472,1738506563960,-500.0,0.00010958,2]
[351288473,1738506563985,-500.0,0.00010958,2]
[351288474,1738506564007,-500.0,0.00010958,2]
[351288475,1738506564029,-799.65,0.00010958,2]
[351288476,1738506564052,-500.0,0.00010958,2]
[351288477,1738506564074,-500.0,0.00010958,2]
[351288478,1738506564097,-500.0,0.00010958,2]
[351288479,1738506564120,-500.0,0.00010958,2]
[351288480,1738506564143,-500.0,0.00010958,2]
[351288481,1738506564164,-500.0,0.00010958,2]
[351288482,1738506564186,-500.0,0.00010958,2]
[351288483,1738506564209,-500.0,0.00010958,2]
[351288484,1738506564232,-500.0,0.00010958,2]
[351288485,1738506564254,-500.0,0.00010958,2]
[351288486,1738506564277,-500.0,0.00010958,2]
[351288487,1738506564299,-500.0,0.00010958,2]